fUSD/lending_fUSD_20241215
["ID","MTS","AMOUNT","RATE_DAILY","PERIOD"]
[345385104,1734221354109,-235.78,0.00010137,2]
[345385105,1734221354132,-159.99,0.00010137,2]
[345385106,1734221354153,-177.00862779,0.00010138,2]
[345385107,1734221354175,-229.0,0.00010237,2]
[345385108,1734221354197,-2062.0,0.00010238,2]
[345385109,1734221354218,-2059.0,0.00010238,2]
[345385110,1734221354239,-2059.0,0.00010238,2]
[345385111,1734221354263,-2059.0,0.00010238,2]
[345385112,1734221354287,-866.43,0.00010828,2]
[345385122,1734221431990,-962.89049096,0.00012542,2]
[345385123,1734221432043,-176.41279874,0.00012542,2]
[345385124,1734221432054,-250.0,0.00012626,2]
[345385125,1734221432064,-310.65557528,0.00012643,2]
[345385126,1734221432077,-689.34442472,0.00012643,2]
[345385127,1734221432087,-150.0,0.00012662,2]
[345385128,1734221432096,-200.0,0.00012677,2]
[345385129,1734221432106,-1566.51896895,0.0001268,2]
[345385130,1734221432119,-2143.40822256,0.0001268,2]
[345385131,1734221432131,-715.72280849,0.0001268,2]
[345385132,1734221432140,-263.45,0.0001271,2]
[345385133,1734221432151,-203.53810864,0.00012786,2]
[345385134,1734221432166,-127.17189136,0.00012786,2]
[345385135,1734221432175,-243.47872952,0.00012973,2]
[345385136,1734221432187,-6.52127048,0.00012973,2]
[345385137,1734221432196,-450.0,0.00013,2]
[345385138,1734221432206,-434.4841982,0.00013092,2]
[345385139,1734221432221,-431.9458018,0.00013092,2]
[345385140,1734221432231,-150.121509,0.00013198,3]
[345385141,1734221432240,-150.121509,0.00013198,2]
[345385142,1734221432250,-150.121509,0.00013298,2]
[345385143,1734221432259,-150.121509,0.00013298,3]
[345385144,1734221432269,-331.857,0.000133,2]
[345385145,1734221432279,-630.19465877,0.00013343,2]
[345385152,1734221432482,-822.9,0.00013343,2]
[345385153,1734221432500,-1134.58,0.00013343,2]
[345385154,1734221432520,-1204.50000005,0.00013343,2]
[345385155,1734221432532,-1326.73024974,0.00013343,2]
[345385167,1734221438021,-570.2167948,0.00013343,2]
[345385168,1734221438034,-1023.74679934,0.00013343,2]
[345385169,1734221438057,-596.8963002,0.00013343,2]
[345385170,1734221438070,-1120.61580657,0.00013343,2]
[345385171,1734221438164,-9271.45939053,0.00013343,2]
[345385172,1734221438174,-150.121509,0.00013398,3]
[345385173,1734221438184,-150.121509,0.00013398,2]
[345385174,1734221438194,-439.53,0.00013452,2]
[345385175,1734221438204,-150.121509,0.00013498,2]
[345385176,1734221438215,-150.121509,0.00013498,3]
[345385177,1734221438226,-150.121509,0.00013598,3]
[345385178,1734221438236,-150.121509,0.00013598,2]
[345385179,1734221438245,-150.0,0.00013627,2]
[345385180,1734221438255,-3880.0,0.00013627,2]
[345385181,1734221438265,-13732.0,0.00013627,2]
[345385182,1734221438275,-1099.0,0.00013627,2]
[345385183,1734221438285,-150.121509,0.00013698,2]
[345385184,1734221438294,-150.121509,0.00013698,3]
[345385185,1734221438304,-200.0,0.00013699,2]
[345385186,1734221438314,-150.121509,0.00013798,3]
[345385187,1734221438325,-150.121509,0.00013798,2]
[345385188,1734221438335,-177.00862779,0.000138,2]
[345385189,1734221438345,-170.56489792,0.00013852,2]
[345385190,1734221438359,-1861.035,0.00013852,2]
[345385191,1734221438369,-500.0,0.00013888,2]
[345385192,1734221438379,-150.121509,0.00013898,2]
[345385193,1734221438388,-150.121509,0.00013898,3]
[345385194,1734221438399,-333.2311,0.00013899,2]
[345385195,1734221438408,-289.1303,0.00013899,2]
[345385196,1734221438418,-1000.0,0.00013899,2]
[345385197,1734221438430,-1000.0,0.000139,2]
[345385198,1734221438440,-5000.0,0.000139,2]
[345385199,1734221438450,-2500.0,0.000139,2]
[345385200,1734221438460,-168.0315475,0.000139,2]
[345385201,1734221438470,-1221.37616668,0.000139,2]
[345385202,1734221438479,-168.43997368,0.0001399,2]
[345385204,1734221438489,-150.121509,0.00013998,3]
[345385206,1734221438499,-150.121509,0.00013998,2]
[345385208,1734221438508,-5081.5,0.00013998,2]
[345385210,1734221438519,-2671.17474443,0.00013999,2]
[345385213,1734221438531,-496.99999,0.00013999,2]
[345385215,1734221440048,-162.13,0.00013699,2]
[345385216,1734221440058,-621.31824385,0.00013999,2]
[345385217,1734221440073,-14353.10648363,0.00013999,2]
[345385218,1734221440099,-45657.38387837,0.00013999,2]
[345385219,1734221440111,-502.82616464,0.00013999,2]
[345385220,1734221440120,-1833.07351,0.00013999,2]
[345385221,1734221440130,-500.0,0.00013999,2]
[345385222,1734221440142,-500.0,0.00013999,2]
[345385223,1734221440151,-500.0,0.00013999,2]
[345385224,1734221440161,-473.28,0.00013999,2]
[345385225,1734221440171,-503.6440326,0.00013999,2]
[345385226,1734221440180,-257.43,0.00013999,2]
[345385227,1734221440190,-500.0,0.00013999,2]
[345385228,1734221440201,-500.0,0.00013999,2]
[345385229,1734221440211,-500.0,0.00013999,2]
[345385230,1734221440220,-500.0,0.00013999,2]
[345385231,1734221440230,-500.0,0.00013999,2]
[345385232,1734221440240,-500.0,0.00013999,2]
[345385233,1734221440249,-500.0,0.00013999,2]
[345385234,1734221440258,-500.0,0.00013999,2]
[345385235,1734221440268,-500.0,0.00013999,2]
[345385236,1734221440277,-500.0,0.00013999,2]
[345385237,1734221440287,-500.0,0.00013999,2]
[345385238,1734221440296,-500.0,0.00013999,2]
[345385239,1734221440305,-500.0,0.00013999,2]
[345385240,1734221440316,-500.0,0.00013999,2]
[345385241,1734221440327,-500.0,0.00013999,2]
[345385242,1734221440337,-500.0,0.00013999,2]
[345385243,1734221440347,-500.0,0.00013999,2]
[345385244,1734221440361,-500.0,0.00013999,2]
[345385245,1734221440371,-500.0,0.00013999,2]
[345385246,1734221440381,-189.68508424,0.00013999,2]
[345385247,1734221440390,-500.0,0.00013999,2]
[345385248,1734221440401,-500.0,0.00013999,2]
[345385249,1734221440411,-500.0,0.00013999,2]
[345385250,1734221440421,-500.0,0.00013999,2]
[345385252,1734221440433,-500.0,0.00013999,2]
[345385253,1734221440442,-500.0,0.00013999,2]
[345385254,1734221440452,-500.0,0.00013999,2]
[345385255,1734221440463,-500.0,0.00013999,2]
[345385256,1734221440477,-500.0,0.00013999,2]
[345385257,1734221440488,-558.93,0.00013999,2]
[345385258,1734221440497,-500.0,0.00013999,2]
[345385259,1734221440507,-500.0,0.00013999,2]
[345385260,1734221440517,-500.0,0.00013999,2]
[345385261,1734221440527,-500.0,0.00013999,2]
[345385262,1734221440536,-500.0,0.00013999,2]
[345385263,1734221440546,-500.0,0.00013999,2]
[345385264,1734221440556,-500.0,0.00013999,2]
[345385265,1734221440565,-500.0,0.00013999,2]
[345385266,1734221440577,-500.0,0.00013999,2]
[345385267,1734221440587,-500.0,0.00013999,2]
[345385268,1734221440598,-502.63,0.00013999,2]
[345385269,1734221440607,-500.0,0.00013999,2]
[345385270,1734221440617,-500.0,0.00013999,2]
[345385271,1734221440627,-539.38787069,0.00013999,2]
[345385272,1734221440636,-500.0,0.00013999,2]
[345385273,1734221440646,-500.0,0.00013999,2]
[345385274,1734221440657,-500.0,0.00013999,2]
[345385275,1734221440666,-500.0,0.00013999,2]
[345385276,1734221440677,-500.0,0.00013999,2]
[345385277,1734221440688,-500.0,0.00013999,2]
[345385278,1734221440697,-500.0,0.00013999,2]
[345385279,1734221440707,-500.0,0.00013999,2]
[345385280,1734221440716,-500.0,0.00013999,2]
[345385281,1734221440725,-565.05018594,0.00013999,2]
[345385282,1734221440735,-500.0,0.00013999,2]
[345385283,1734221440744,-510.98337066,0.00013999,2]
[345385284,1734221440754,-348.49528174,0.00013999,2]
[345385285,1734221440764,-575.72,0.00013999,2]
[345385286,1734221440774,-500.0,0.00013999,2]
[345385287,1734221440784,-500.0,0.00013999,2]
[345385288,1734221440793,-500.0,0.00013999,2]
[345385289,1734221440803,-551.13,0.00013999,2]
[345385290,1734221440813,-501.29221837,0.00013999,2]
[345385291,1734221440823,-500.0,0.00013999,2]
[345385292,1734221440838,-383.44,0.00013999,2]
[345385293,1734221440848,-500.0,0.00013999,2]
[345385294,1734221440858,-500.0,0.00013999,2]
[345385295,1734221440867,-500.0,0.00013999,2]
[345385296,1734221440877,-500.0,0.00013999,2]
[345385297,1734221440886,-395.04,0.00013999,2]
[345385298,1734221440896,-500.0,0.00013999,2]
[345385299,1734221440906,-500.0,0.00013999,2]
[345385300,1734221440916,-500.0,0.00013999,2]
[345385301,1734221440926,-500.0,0.00013999,2]
[345385302,1734221440935,-500.0,0.00013999,2]
[345385303,1734221440945,-500.0,0.00013999,2]
[345385304,1734221440955,-500.0,0.00013999,2]
[345385305,1734221440965,-330.86220086,0.00013999,2]
[345385306,1734221440975,-371.50569601,0.00013999,2]
[345385307,1734221440984,-500.0,0.00013999,2]
[345385308,1734221440998,-500.0,0.00013999,2]
[345385309,1734221441008,-500.0,0.00013999,2]
[345385310,1734221441017,-500.0,0.00013999,2]
[345385311,1734221441027,-500.0,0.00013999,2]
[345385312,1734221441039,-500.0,0.00013999,2]
[345385313,1734221441050,-500.0,0.00013999,2]
[345385314,1734221441060,-500.0,0.00013999,2]
[345385315,1734221441070,-500.0,0.00013999,2]
[345385316,1734221441081,-500.0,0.00013999,2]
[345385317,1734221441091,-500.0,0.00013999,2]
[345385318,1734221441100,-500.0,0.00013999,2]
[345385319,1734221441110,-500.0,0.00013999,2]
[345385320,1734221441120,-393.73,0.00013999,2]
[345385321,1734221441130,-252.94,0.00013999,2]
[345385322,1734221441140,-500.0,0.00013999,2]
[345385323,1734221441150,-500.0,0.00013999,2]
[345385324,1734221441159,-500.0,0.00013999,2]
[345385325,1734221441169,-500.0,0.00013999,2]
[345385326,1734221441179,-500.0,0.00013999,2]
[345385327,1734221441189,-500.0,0.00013999,2]
[345385328,1734221441198,-500.0,0.00013999,2]
[345385329,1734221441209,-548.0,0.00013999,2]
[345385330,1734221441219,-92020.22110972,0.00014,4]
[345385331,1734221441447,-12790.10670477,0.00014,4]
[345385332,1734221441460,-1889.52799012,0.00014,4]
[345385333,1734221441472,-5374.76455468,0.00014,4]
[345385334,1734221441503,-300.8039994,0.00013999,2]
[345385335,1734221441515,-199.1960006,0.00013999,2]
[345385336,1734221441525,-500.0,0.00013999,2]
[345385337,1734221441534,-500.0,0.00013999,2]
[345385338,1734221441543,-2995.62122843,0.00014,4]
[345385339,1734221441555,-237492.18528485,0.00014,4]
[345385340,1734221441566,-642.97607776,0.00014,4]
[345385342,1734221443145,-315.40433207,0.00013999,2]
[345385343,1734221445970,-1842.26124523,0.000139,2]
[345385344,1734221446076,-2422.52237623,0.000139,2]
[345385345,1734221446086,-184.59566793,0.00013999,2]
[345385346,1734221446096,-500.0,0.00013999,2]
[345385347,1734221446107,-461.95,0.00013999,2]
[345385348,1734221446117,-500.0,0.00013999,2]
[345385349,1734221446126,-127.63085584,0.00013999,2]
[345385350,1734221446233,-372.36914416,0.00013999,2]
[345385351,1734221446243,-500.0,0.00013999,2]
[345385352,1734221446254,-471.62585043,0.00013999,2]
[345385353,1734221446265,-28.37414957,0.00013999,2]
[345385354,1734221446277,-500.0,0.00013999,2]
[345385355,1734221446286,-500.0,0.00013999,2]
[345385356,1734221446296,-500.0,0.00013999,2]
[345385357,1734221446306,-496.50239513,0.00013999,2]
[345385358,1734221638591,152.37,0.00016658,30]
[345385374,1734222344266,338344.0,0.0002,120]
[345385375,1734222350775,84359.0,0.0002,120]
[345385376,1734222443145,-187.09,9.954e-05,2]
[345385377,1734222443168,-375.98,0.00010137,2]
[345385378,1734222443191,-904.47,0.00010839,2]
[345385379,1734222443212,-299.26360041,0.00012363,2]
[345385380,1734222443233,-299.26360041,0.00012418,2]
[345385381,1734222443254,-250.0,0.00012453,2]
[345385382,1734222443275,-200.0,0.00012463,2]
[345385383,1734222443299,-1816.03001097,0.00012512,2]
[345385392,1734222569089,-12560.0,0.00010053,2]
[345385393,1734222569116,-6280.0,0.00010053,2]
[345385394,1734222569141,-6280.0,0.00010053,2]
[345385395,1734222569162,-1026.15892,0.00010053,2]
[345385404,1734222632254,-2345.7000092,0.00010053,2]
[345385405,1734222632309,-2906.65711518,0.00010053,2]
[345385406,1734222632366,-1.48395562,0.00010053,2]
[345385407,1734222632377,-255.71204438,0.00010053,2]
[345385408,1734222632479,-4709.36955768,0.00010053,2]
[345385409,1734222632492,-1314.91839794,0.00010053,2]
[345385410,1734222632501,-859.24,0.00010561,2]
[345385411,1734222632511,-156.73,0.00012412,2]
[345385412,1734222632521,-819.97,0.00012459,2]
[345385413,1734222632530,-5483.86,0.00012479,2]
[345385414,1734222632540,-250.0,0.00012488,2]
[345385415,1734222632550,-2011.10998903,0.00012512,2]
[345385416,1734222632560,-1000.0,0.00012517,2]
[345385417,1734222632569,-2751.0,0.00012524,2]
[345385418,1734222632579,-150.0,0.00012744,2]
[345385419,1734222632588,-628.35,0.00012748,2]
[345385420,1734222632598,-152.58,0.00012758,2]
[345385421,1734222632607,-152.58,0.00012762,2]
[345385422,1734222632623,-152.58,0.00012766,2]
[345385423,1734222632632,-152.58,0.00012771,2]
[345385424,1734222632642,-152.58,0.00012775,2]
[345385425,1734222632652,-152.58,0.00012779,2]
[345385426,1734222632662,-152.58,0.00012783,2]
[345385427,1734222632672,-152.58,0.00012788,2]
[345385428,1734222632685,-152.58,0.00012792,2]
[345385429,1734222632695,-152.58,0.00012796,2]
[345385430,1734222632705,-152.58,0.000128,2]
[345385431,1734222632714,-152.58,0.00012805,2]
[345385433,1734222632724,-152.58,0.00012809,2]
[345385435,1734222632734,-152.58,0.00012813,2]
[345385438,1734222632743,-152.58,0.00012817,2]
[345385440,1734222632754,-152.58,0.00012821,2]
[345385442,1734222632764,-859.24,0.00012825,2]
[345385444,1734222632773,-450.0,0.00013,2]
[345385446,1734222632783,-31533.37763359,0.00013,2]
[345385448,1734222632793,-150.121509,0.00013098,3]
[345385450,1734222632803,-150.121509,0.00013098,2]
[345385452,1734222632813,-10583.406,0.00013098,2]
[345385454,1734222632822,-150.121509,0.00013198,2]
[345385456,1734222632832,-150.121509,0.00013198,3]
[345385458,1734222632843,-150.121509,0.00013298,3]
[345385460,1734222632853,-150.121509,0.00013298,2]
[345385462,1734222632863,-317.804,0.000133,2]
[345385464,1734222632872,-200.0,0.000133,4]
[345385466,1734222632883,-150.121509,0.00013398,2]
[345385468,1734222632892,-150.121509,0.00013398,3]
[345385470,1734222632901,-500.0,0.000134,4]
[345385472,1734222632911,-150.121509,0.00013498,3]
[345385474,1734222632921,-150.121509,0.00013498,2]
[345385476,1734222632931,-800.0,0.000135,4]
[345385478,1734222632942,-150.121509,0.00013598,2]
[345385480,1734222632951,-150.121509,0.00013598,3]
[345385482,1734222632961,-1994.357,0.00013598,2]
[345385484,1734222632971,-167.787,0.00013598,2]
[345385486,1734222632980,-1000.0,0.000136,4]
[345385488,1734222632990,-167.45,0.00013614,2]
[345385490,1734222633000,-150.121509,0.00013698,3]
[345385492,1734222633011,-150.121509,0.00013698,2]
[345385494,1734222633022,-159.55,0.00013699,2]
[345385496,1734222633031,-1300.0,0.000137,5]
[345385499,1734222633043,-358.4230701,0.00013702,2]
[345385500,1734222633052,-200.0,0.00013752,2]
[345385502,1734222633061,-5212.5196,0.00013781,2]
[345385504,1734222633071,-150.121509,0.00013798,2]
[345385507,1734222633082,-150.121509,0.00013798,3]
[345385508,1734222633091,-200.0,0.000138,5]
[345385509,1734222633103,-3000.0,0.0001386,2]
[345385510,1734222633115,-1636.9,0.00013863,2]
[345385512,1734222633129,-500.0,0.00013888,2]
[345385514,1734222633139,-150.121509,0.00013898,3]
[345385516,1734222633153,-150.121509,0.00013898,2]
[345385518,1734222633163,-1000.0,0.00013898,2]
[345385520,1734222633173,-5000.0,0.00013899,2]
[345385522,1734222633184,-608.2061,0.00013899,2]
[345385524,1734222633194,-177.14543369,0.00013899,2]
[345385526,1734222633205,-1271.29187265,0.00013899,2]
[345385528,1734222633215,-160.14369709,0.00013899,2]
[345385530,1734222633224,-1271.29187257,0.00013899,2]
[345385532,1734222633234,-1271.29187257,0.00013899,2]
[345385534,1734222633244,-1271.29187257,0.00013899,2]
[345385536,1734222633254,-1271.29187257,0.00013899,2]
[345385538,1734222633264,-1271.29187257,0.000139,2]
[345385540,1734222633273,-171.09584529,0.000139,2]
[345385543,1734222633303,-1100.19602728,0.000139,2]
[345385545,1734222633314,-606.60977722,0.000139,2]
[345385547,1734222633325,-393.39022278,0.000139,2]
[345385549,1734222633335,-1271.29187257,0.000139,2]
[345385551,1734222633344,-1271.29187257,0.000139,2]
[345385553,1734222633354,-161.12844201,0.000139,2]
[345385555,1734222633364,-159.75961038,0.000139,2]
[345385557,1734222633374,-1271.29187257,0.000139,2]
[345385558,1734222633383,-200.0,0.000139,5]
[345385560,1734222633394,-160.14369709,0.000139,2]
[345385562,1734222633403,-2843.18908096,0.000139,2]
[345385564,1734222633413,-176.95004563,0.000139,2]
[345385566,1734222633423,-814.25077778,0.000139,2]
[345385568,1734222633433,-1895.0,0.00013944,2]
[345385570,1734222633443,-3765.0,0.00013944,2]
[345385571,1734222633453,-1401.683,0.00013944,2]
[345385573,1734222633463,-930.0,0.00013944,2]
[345385574,1734222633473,-817.0,0.00013944,2]
[345385575,1734222633482,-535.0,0.00013944,2]
[345385576,1734222633492,-3630.0,0.00013944,2]
[345385577,1734222633502,-1099.0,0.00013944,2]
[345385578,1734222633512,-150.0,0.00013944,2]
[345385579,1734222633523,-2006.0,0.00013944,2]
[345385580,1734222633533,-634.0,0.00013944,2]
[345385581,1734222633546,-3880.0,0.00013944,2]
[345385582,1734222633556,-1263.0,0.00013944,2]
[345385583,1734222633566,-500.48140561,0.00013973,2]
[345385584,1734222633576,-500.0,0.00013973,2]
[345385585,1734222633587,-159.85174053,0.00013973,2]
[345385586,1734222633597,-500.0,0.00013973,2]
[345385587,1734222633607,-181.96744863,0.00013998,2]
[345385588,1734222633617,-150.121509,0.00013998,2]
[345385589,1734222633627,-150.121509,0.00013998,3]
[345385590,1734222633637,-3879.44242543,0.00013998,2]
[345385591,1734222633647,-500.0,0.00013998,2]
[345385592,1734222633657,-500.0,0.00013998,2]
[345385593,1734222633671,-500.0,0.00013998,2]
[345385594,1734222633681,-500.0,0.00013998,2]
[345385595,1734222633692,-500.0,0.00013998,2]
[345385596,1734222633702,-500.0,0.00013998,2]
[345385597,1734222633712,-500.0,0.00013998,2]
[345385598,1734222633722,-500.0,0.00013998,2]
[345385599,1734222633732,-500.0,0.00013998,2]
[345385600,1734222633742,-500.0,0.00013998,2]
[345385601,1734222633752,-631.96,0.00013998,2]
[345385602,1734222633762,-500.0,0.00013998,2]
[345385603,1734222633772,-605.3,0.00013998,2]
[345385604,1734222633782,-500.0,0.00013998,2]
[345385605,1734222633791,-500.0,0.00013998,2]
[345385606,1734222633801,-500.0,0.00013998,2]
[345385607,1734222633810,-500.0,0.00013998,2]
[345385608,1734222633820,-500.0,0.00013998,2]
[345385609,1734222633830,-500.0,0.00013998,2]
[345385610,1734222633840,-500.0,0.00013998,2]
[345385611,1734222633849,-255.93,0.00013998,2]
[345385612,1734222633859,-528.48,0.00013998,2]
[345385613,1734222633870,-500.0,0.00013998,2]
[345385614,1734222633879,-500.0,0.00013998,2]
[345385615,1734222633889,-153.021989,0.00013998,2]
[345385616,1734222633899,-500.0,0.00013998,2]
[345385617,1734222633910,-507.96,0.00013998,2]
[345385618,1734222633921,-196.885982,0.00013998,2]
[345385619,1734222633932,-169.842403,0.00013998,2]
[345385620,1734222633942,-196.885982,0.00013998,2]
[345385621,1734222633953,-169.842403,0.00013998,2]
[345385622,1734222633963,-169.842403,0.00013998,2]
[345385623,1734222633973,-500.0,0.00013998,2]
[345385624,1734222633983,-500.0,0.00013998,2]
[345385625,1734222633993,-500.0,0.00013998,2]
[345385626,1734222634004,-500.0,0.00013998,2]
[345385627,1734222634015,-500.0,0.00013998,2]
[345385628,1734222634025,-500.0,0.00013998,2]
[345385629,1734222634035,-521.64079813,0.00013998,2]
[345385630,1734222634046,-500.0,0.00013998,2]
[345385631,1734222634056,-500.0,0.00013998,2]
[345385632,1734222634066,-856.9,0.00013998,2]
[345385633,1734222634076,-856.9,0.00013998,2]
[345385634,1734222634086,-856.9,0.00013998,2]
[345385635,1734222634095,-856.9,0.00013998,2]
[345385636,1734222634104,-856.9,0.00013998,2]
[345385637,1734222634114,-856.9,0.00013998,2]
[345385638,1734222634130,-856.9,0.00013998,2]
[345385639,1734222634139,-856.9,0.00013998,2]
[345385640,1734222634149,-856.9,0.00013998,2]
[345385641,1734222634159,-500.0,0.00013998,2]
[345385642,1734222634168,-500.0,0.00013998,2]
[345385643,1734222634178,-500.0,0.00013998,2]
[345385644,1734222634191,-500.0,0.00013998,2]
[345385645,1734222634201,-500.0,0.00013998,2]
[345385646,1734222634211,-516.7,0.00013998,2]
[345385647,1734222634221,-458.78,0.00013998,2]
[345385648,1734222634232,-500.0,0.00013998,2]
[345385649,1734222634242,-500.0,0.00013998,2]
[345385650,1734222634252,-500.0,0.00013998,2]
[345385651,1734222634262,-500.0,0.00013998,2]
[345385652,1734222634272,-500.0,0.00013998,2]
[345385653,1734222634281,-500.0,0.00013998,2]
[345385654,1734222634291,-500.0,0.00013998,2]
[345385655,1734222634301,-500.0,0.00013998,2]
[345385656,1734222634311,-500.0,0.00013998,2]
[345385657,1734222634321,-500.0,0.00013998,2]
[345385658,1734222634330,-500.0,0.00013998,2]
[345385659,1734222634340,-500.0,0.00013998,2]
[345385660,1734222634359,-500.0,0.00013998,2]
[345385661,1734222634372,-500.0,0.00013998,2]
[345385662,1734222634382,-500.0,0.00013998,2]
[345385663,1734222634392,-500.0,0.00013998,2]
[345385664,1734222634402,-500.0,0.00013998,2]
[345385665,1734222634412,-500.0,0.00013998,2]
[345385666,1734222634422,-500.0,0.00013998,2]
[345385667,1734222634433,-500.0,0.00013998,2]
[345385668,1734222634443,-227.8,0.00013998,2]
[345385669,1734222634453,-500.0,0.00013998,2]
[345385670,1734222634463,-360.9,0.00013998,2]
[345385671,1734222634473,-500.0,0.00013998,2]
[345385672,1734222634482,-500.0,0.00013998,2]
[345385673,1734222634493,-500.0,0.00013998,2]
[345385674,1734222634503,-361.39991081,0.00013998,2]
[345385675,1734222634513,-500.0,0.00013998,2]
[345385676,1734222634524,-500.0,0.00013998,2]
[345385677,1734222634534,-500.0,0.00013998,2]
[345385678,1734222634545,-500.0,0.00013998,2]
[345385679,1734222634555,-188.46,0.00013998,2]
[345385680,1734222634565,-559.67917772,0.00013998,2]
[345385681,1734222634575,-500.0,0.00013998,2]
[345385682,1734222634584,-500.0,0.00013998,2]
[345385683,1734222634594,-500.0,0.00013998,2]
[345385684,1734222634604,-500.0,0.00013998,2]
[345385685,1734222634613,-500.0,0.00013998,2]
[345385686,1734222634623,-500.0,0.00013998,2]
[345385687,1734222634633,-500.0,0.00013998,2]
[345385688,1734222634643,-500.0,0.00013998,2]
[345385689,1734222634652,-500.0,0.00013998,2]
[345385690,1734222634898,-500.0,0.00013998,2]
[345385691,1734222634909,-500.0,0.00013998,2]
[345385692,1734222634919,-500.0,0.00013998,2]
[345385693,1734222634929,-500.0,0.00013998,2]
[345385694,1734222634941,-500.0,0.00013998,2]
[345385695,1734222634951,-500.0,0.00013998,2]
[345385696,1734222634960,-500.0,0.00013998,2]
[345385697,1734222634971,-500.0,0.00013998,2]
[345385698,1734222634982,-500.0,0.00013998,2]
[345385699,1734222634992,-500.0,0.00013998,2]
[345385700,1734222635002,-285.43,0.00013998,2]
[345385701,1734222635011,-500.0,0.00013998,2]
[345385702,1734222635022,-500.0,0.00013998,2]
[345385703,1734222635033,-500.0,0.00013998,2]
[345385704,1734222635044,-500.0,0.00013998,2]
[345385705,1734222635055,-335.59397567,0.00013998,2]
[345385706,1734222635064,-500.0,0.00013998,2]
[345385707,1734222635075,-500.0,0.00013998,2]
[345385708,1734222635086,-500.0,0.00013998,2]
[345385709,1734222635095,-500.0,0.00013998,2]
[345385710,1734222635105,-500.0,0.00013998,2]
[345385711,1734222635114,-500.0,0.00013998,2]
[345385712,1734222635128,-500.0,0.00013998,2]
[345385713,1734222635139,-500.0,0.00013998,2]
[345385714,1734222635149,-500.0,0.00013998,2]
[345385715,1734222635161,-518.23653225,0.00013998,2]
[345385716,1734222635171,-500.0,0.00013998,2]
[345385717,1734222635184,-500.0,0.00013998,2]
[345385718,1734222635194,-500.0,0.00013998,2]
[345385719,1734222635204,-500.0,0.00013998,2]
[345385720,1734222635213,-500.0,0.00013998,2]
[345385721,1734222635223,-500.0,0.00013998,2]
[345385722,1734222635233,-500.0,0.00013998,2]
[345385723,1734222635243,-500.0,0.00013998,2]
[345385724,1734222635253,-500.0,0.00013998,2]
[345385725,1734222635263,-500.0,0.00013998,2]
[345385726,1734222635272,-500.0,0.00013998,2]
[345385727,1734222635282,-500.0,0.00013998,2]
[345385728,1734222635293,-500.0,0.00013998,2]
[345385729,1734222635308,-500.0,0.00013998,2]
[345385730,1734222635318,-500.0,0.00013998,2]
[345385731,1734222635328,-500.0,0.00013998,2]
[345385732,1734222635338,-500.0,0.00013998,2]
[345385733,1734222635349,-253.53,0.00013998,2]
[345385734,1734222635359,-500.0,0.00013998,2]
[345385735,1734222635369,-500.0,0.00013998,2]
[345385736,1734222635379,-500.0,0.00013998,2]
[345385737,1734222635389,-500.0,0.00013998,2]
[345385738,1734222635398,-500.0,0.00013998,2]
[345385739,1734222635409,-500.0,0.00013998,2]